bitfinex/quotes_ETHUSD_20251004
["timestamp","ask_amount","ask_price","bid_price","bid_amount"]
[1759581154316,0.8094357,4489.9,4486.6,32.23076546]
[1759581154317,0.08916301,4488.6,4487.2,2.22856124]
[1759581154515,0.4467,4488.2,4487.8,2.22826329]
[1759581154813,0.1112,4488.5,4487.8,4.87074592]
[1759581154814,0.4467,4488.0,4487.8,4.87074592]
[1759581155020,0.1112,4488.5,4487.8,4.84846329]
[1759581155252,0.4567,4487.9,4487.8,4.84846329]
[1759581156245,0.4567,4487.9,4487.8,17.1202]
[1759581156555,0.4567,4487.9,4487.8,19.34846329]
[1759581157843,0.4567,4487.9,4487.8,17.1202]
[1759581158552,0.4567,4487.9,4487.8,19.34846329]
[1759581159964,0.4587,4487.9,4487.8,19.34846329]
[1759581160842,0.4587,4487.9,4487.8,17.1202]
[1759581161041,2.68691364,4487.9,4487.8,0.1112]
[1759581161244,0.83859136,4487.9,4487.1,0.1112]
[1759581161445,0.72739136,4487.9,4487.2,2.509]
[1759581161777,0.72739136,4487.9,4486.4,2.22895486]
[1759581161778,2.22856198,4487.2,4486.8,0.1112]
[1759581162068,0.4467,4487.1,4486.8,0.1112]
[1759581162438,2.67532067,4487.1,4486.9,2.509]
[1759581162745,0.4467,4487.0,4486.9,2.509]
[1759581165027,0.4467,4487.0,4486.8,0.1112]
[1759581165268,2.67541024,4486.9,4486.3,0.80002143]
[1759581165569,0.4467,4486.8,4486.4,0.1112]
[1759581165871,0.4467,4486.8,4486.4,2.6202]
[1759581166172,0.4467,4486.7,4486.4,2.6202]
[1759581166340,0.4467,4486.6,4486.4,2.6202]
[1759581166669,0.4467,4486.5,4486.4,2.6202]
[1759581166868,0.4467,4486.5,4486.3,0.001]
[1759581167073,0.4467,4486.5,4486.4,2.509]
[1759581167275,0.4467,4486.5,4486.3,0.001]
[1759581167438,2.22895863,4486.4,4486.3,0.001]
[1759581167631,2.22895863,4486.4,4486.3,2.51]
[1759581167862,2.67565863,4486.4,4486.3,2.51]
[1759581168641,2.67565863,4486.4,4486.3,0.001]
[1759581168846,3.27731194,4486.4,4486.3,0.001]
[1759581169033,5.67731194,4486.4,4486.3,0.001]
[1759581169235,5.78851194,4486.4,4486.3,0.001]
[1759581169433,9.44733324,4486.4,4486.3,0.001]
[1759581173070,11.95633324,4486.4,4486.3,0.001]
[1759581175098,11.95633324,4486.4,4485.1,0.01]
[1759581175099,2.22955498,4485.2,4485.1,0.01]
[1759581175303,2.67545901,4485.2,4485.1,0.01]
[1759581175599,5.53205901,4485.2,4485.1,0.01]
[1759581175797,5.62130099,4485.2,4485.1,0.01]
[1759581178064,4.71879696,4485.2,4485.1,0.01]
[1759581180504,0.4566,4485.7,4485.1,0.01]
[1759581180805,0.2886,4485.6,4485.1,0.01]
[1759581181099,2.22955498,4485.2,4485.1,0.01]
[1759581182396,2.4,4485.5,4485.1,0.01]
[1759581182772,0.2886,4485.6,4485.1,0.01]
[1759581183297,2.4,4485.5,4485.1,0.01]
[1759581183504,2.22949215,4485.4,4485.1,0.01]
[1759581183677,2.4,4485.5,4485.1,0.01]
[1759581183874,2.22955498,4485.2,4485.1,0.01]
[1759581184603,5.81771603,4485.2,4485.1,0.01]
[1759581185101,5.92891603,4485.2,4485.1,0.01]
[1759581188018,5.47231603,4485.2,4485.1,0.01]
[1759581188332,5.36111603,4485.2,4485.1,0.01]
[1759581188630,5.45035045,4485.2,4485.1,0.01]
[1759581189830,2.22955498,4485.2,4485.1,0.01]
[1759581191541,2.4,4485.5,4485.1,0.01]
[1759581191729,2.22945556,4485.4,4485.1,0.01]
[1759581192897,2.22955498,4485.2,4485.1,0.01]
[1759581193714,2.22952009,4485.3,4485.1,0.01]
[1759581194013,2.22945556,4485.4,4485.1,0.01]
[1759581194333,2.68615498,4485.2,4485.1,0.01]
[1759581195434,2.68615498,4485.2,4485.1,2.52]
[1759581195640,3.17771603,4485.2,4485.1,2.52]
[1759581195951,3.17771603,4485.2,4485.1,2.521]
[1759581196134,2.68615498,4485.2,4485.1,2.521]
[1759581196628,2.22955498,4485.2,4485.1,2.521]
[1759581197754,2.68615498,4485.2,4485.1,2.521]
[1759581198251,2.79735498,4485.2,4485.1,2.521]
[1759581198411,2.34075498,4485.2,4485.1,2.521]
[1759581198616,2.79735498,4485.2,4485.1,2.521]
[1759581201372,2.34075498,4485.2,4485.1,2.521]
[1759581201756,2.77135498,4485.2,4485.1,2.521]
[1759581204969,2.77135498,4485.2,4485.1,0.011]
[1759581205273,2.77135498,4485.2,4485.1,2.522]
[1759581205650,2.77135498,4485.2,4485.1,0.011]
[1759581205976,3.51163603,4485.2,4485.1,0.011]
[1759581207393,3.08103603,4485.2,4485.1,0.011]
[1759581207550,2.34075498,4485.2,4485.1,0.011]
[1759581211905,2.22970603,4484.9,4484.2,0.71382143]
[1759581212115,2.2297573,4484.8,4484.2,0.71382143]
[1759581213115,2.2298089,4484.7,4484.3,2.511]
[1759581213613,2.22986195,4484.6,4484.3,2.511]
[1759581214173,2.73977523,4485.4,4484.3,2.511]
[1759581214174,2.22990513,4484.5,4484.3,2.511]
[1759581214477,2.22986686,4484.6,4484.3,2.511]
[1759581216108,2.22981352,4484.7,4484.3,2.511]
[1759581216410,2.4,4485.3,4484.4,0.02229952]
[1759581216611,2.22955498,4485.2,4484.4,0.02229952]
[1759581216827,2.22971178,4484.9,4484.4,0.02229952]
[1759581217380,2.22961811,4485.1,4484.4,0.02229952]
[1759581217978,2.22961263,4485.1,4484.4,0.49973846]
[1759581218526,2.22968344,4485.0,4484.4,0.49973846]
[1759581218735,2.22969774,4485.0,4484.4,0.49973846]
[1759581219934,2.22969774,4485.0,4484.4,14.99973846]
[1759581220133,2.22969774,4485.0,4484.5,2.0943612]
[1759581221536,2.22969774,4485.0,4484.6,0.02229853]
[1759581222428,2.22969774,4485.0,4484.7,2.511]
[1759581222727,2.34081907,4485.1,4484.7,2.511]
[1759581222909,0.1112,4485.1,4484.8,0.02229753]
[1759581223121,0.1112,4485.1,4484.8,0.47388587]
[1759581223448,0.002,4485.4,4484.8,0.47388587]
[1759581223449,0.1112,4485.3,4484.9,0.02229704]
[1759581224015,2.22955742,4485.2,4484.9,0.02229704]
[1759581224535,2.22955742,4485.2,4484.8,0.02229753]
[1759581224835,2.34071153,4485.3,4484.8,0.02229753]
[1759581225994,0.1112,4485.3,4484.8,0.59711195]
[1759581228248,2.22967531,4485.0,4484.8,0.02229753]
[1759581228427,0.4514,4485.2,4484.7,2.511]
[1759581228428,2.2297155,4484.9,4484.7,2.511]
[1759581228627,0.4514,4484.8,4484.7,2.511]
[1759581228933,2.22973922,4484.9,4484.7,2.511]
[1759581229133,0.4514,4484.8,4484.7,2.511]
[1759581229717,2.22955498,4485.2,4484.7,2.511]
[1759581230023,0.4514,4485.1,4484.7,2.511]
[1759581230223,2.22965822,4485.0,4484.7,2.511]
[1759581231465,2.22966037,4485.0,4484.7,2.511]
[1759581231752,0.4624,4485.2,4484.7,2.511]
[1759581231954,0.4624,4485.1,4484.7,2.511]
[1759581232147,0.1112,4485.3,4484.7,2.77322]
[1759581232344,2.22961364,4485.1,4484.8,0.02229753]
[1759581232661,0.002,4485.0,4484.8,0.02229753]
[1759581233047,0.002,4485.0,4484.7,2.77322]
[1759581234838,2.23165466,4485.0,4484.7,2.77322]
[1759581235153,0.002,4485.0,4484.7,2.77322]
[1759581235656,2.23167589,4485.0,4484.7,2.77322]
[1759581235864,2.23167589,4485.0,4484.7,2.511]
[1759581237228,0.002,4485.0,4484.7,2.511]
[1759581237424,2.23165935,4485.0,4484.7,2.511]
[1759581237627,2.69405935,4485.0,4484.7,2.511]
[1759581238330,0.4644,4485.0,4484.7,2.511]
[1759581238535,2.69405565,4485.0,4484.7,2.511]
[1759581238865,0.4644,4485.0,4484.7,2.511]
[1759581239536,2.69406384,4485.0,4484.7,2.511]
[1759581239736,2.69405464,4485.0,4484.7,2.511]
[1759581239955,0.4644,4485.0,4484.7,2.511]
[1759581240159,0.002,4485.0,4484.8,0.02229753]
[1759581241044,0.002,4485.0,4484.9,2.22970411]
[1759581241258,0.002,4485.0,4484.9,2.34090411]
[1759581241852,0.002,4485.0,4484.9,0.1112]
[1759581242054,0.002,4485.0,4484.9,3.14208016]
[1759581242254,0.002,4485.0,4484.9,4.22410062]
[1759581242458,0.002,4485.0,4484.9,1.19322046]
[1759581242670,0.4644,4485.0,4484.9,2.6222]
[1759581242845,0.002,4485.0,4484.9,2.6222]
[1759581243279,0.002,4485.0,4484.9,3.42322699]
[1759581243782,0.002,4485.0,4484.9,0.91222699]
[1759581243946,0.002,4485.0,4484.9,3.42322699]
[1759581244885,0.4644,4485.0,4484.9,3.42322699]
[1759581245082,0.4644,4485.0,4484.9,2.6222]
[1759581249631,2.6940544,4485.0,4484.9,0.1112]
[1759581249910,2.6940544,4485.0,4484.3,1.2028231]
[1759581249911,2.2297859,4484.8,4484.3,0.91222699]
[1759581250100,0.4624,4484.7,4484.4,3.31202699]
[1759581250415,0.4624,4484.6,4484.4,3.31202699]
[1759581251307,0.1132,4485.0,4484.4,3.33432651]
[1759581251509,0.1132,4485.0,4484.5,0.80102699]
[1759581251717,0.1132,4485.0,4484.6,0.02229853]
[1759581252011,0.4624,4484.9,4484.7,2.511]
[1759581252412,0.1132,4485.0,4484.7,2.511]
[1759581252712,0.4624,4484.9,4484.7,2.511]
[1759581253945,0.002,4485.0,4484.7,2.511]
[1759581254145,0.002,4485.0,4484.8,0.46470023]
[1759581254441,0.002,4485.0,4484.8,0.13349753]
[1759581255843,0.002,4485.0,4484.9,0.80102699]
[1759581256426,0.002,4485.0,4484.9,3.31202699]
[1759581256972,0.002,4485.0,4484.9,3.33432403]
[1759581257132,0.002,4485.4,4485.0,0.6336]
[1759581257335,0.002,4485.4,4485.3,2.34070527]
[1759581257539,0.002,4485.4,4485.3,4.87400032]
[1759581257835,0.002,4485.4,4485.3,4.85170527]
[1759581260651,0.002,4485.4,4485.3,5.48530527]
[1759581260869,0.002,4485.4,4485.3,6.54249907]
[1759581261769,0.002,4485.4,4485.3,7.74532217]
[1759581262063,0.002,4485.4,4485.3,21.97144641]
[1759581262275,0.002,4485.4,4485.3,20.76862331]
[1759581264868,0.002,4485.4,4485.3,18.53911804]
[1759581265056,0.002,4485.4,4485.3,19.33866559]
[1759581265256,0.002,4485.4,4485.3,18.53911804]
[1759581265464,0.002,4485.4,4485.3,16.02811804]
[1759581265666,0.002,4485.4,4485.3,18.53911804]
[1759581266041,0.43,4485.4,4485.3,17.90551804]
[1759581266729,0.002,4485.4,4485.3,17.90551804]
[1759581266955,0.002,4485.4,4485.3,20.13502331]
[1759581267167,0.002,4485.4,4485.3,17.90551804]
[1759581267579,0.002,4485.4,4485.3,20.13502331]
[1759581267743,0.002,4485.4,4485.3,20.93457086]
[1759581269669,0.002,4485.4,4485.3,20.13502331]
[1759581270978,0.002,4485.4,4485.3,5.63502331]
[1759581271147,0.002,4485.4,4485.3,6.43438642]
[1759581271474,0.002,4485.4,4485.3,20.93438642]
[1759581272040,0.4306,4485.4,4485.3,20.93438642]
[1759581272442,0.002,4485.4,4485.3,20.93438642]
[1759581272642,0.4306,4485.4,4485.3,0.1112]
[1759581272863,0.4306,4485.4,4485.3,2.6222]
[1759581273677,0.4306,4485.4,4485.3,2.64449505]
[1759581274068,0.4306,4485.4,4485.3,2.6222]
[1759581276367,0.4306,4485.4,4485.3,4.85170527]
[1759581277068,0.002,4485.4,4485.3,4.85170527]
[1759581279394,0.002,4485.4,4485.3,2.6222]
[1759581279593,0.002,4485.4,4485.3,2.64449505]
[1759581279789,0.4306,4485.4,4485.3,2.64449505]
[1759581280102,0.4306,4485.4,4485.3,2.6222]
[1759581281170,0.4306,4485.4,4485.3,5.65106838]
[1759581282311,0.002,4485.4,4485.3,5.65106838]
[1759581282894,0.002,4485.4,4485.3,3.42156311]
[1759581283097,0.002,4485.4,4485.3,3.44385816]
[1759581283388,0.002,4485.4,4485.3,2.64449505]
[1759581283706,0.002,4485.4,4485.3,4.87400032]
[1759581283870,0.002,4485.4,4485.3,4.85170527]
[1759581284069,0.4306,4485.4,4485.3,4.85170527]
[1759581284678,0.002,4485.4,4485.3,4.85170527]
[1759581285605,0.002,4485.4,4485.3,7.65172425]
[1759581285909,0.002,4485.4,4485.3,7.76292425]
[1759581288186,0.002,4485.4,4485.3,8.96574735]
[1759581289978,0.002,4485.4,4485.3,6.45474735]
[1759581290180,0.4306,4485.4,4485.3,8.96574735]
[1759581290500,0.4306,4485.4,4485.3,6.45474735]
[1759581290683,0.4306,4485.4,4485.3,8.96574735]
[1759581291203,0.002,4485.4,4485.3,8.96574735]
[1759581291813,0.002,4485.4,4485.3,6.68812837]
[1759581292122,0.002,4485.4,4485.3,5.48530527]
[1759581292331,0.002,4485.4,4485.3,6.68812837]
[1759581293626,0.002,4485.4,4485.3,4.17712837]
[1759581293930,0.002,4485.4,4485.3,6.68812837]
[1759581294536,0.002,4485.4,4485.3,7.58000656]
[1759581295726,0.002,4485.4,4485.3,22.08000656]
[1759581296526,0.002,4485.4,4485.3,20.87718346]
[1759581296697,0.002,4485.4,4485.3,19.85025424]
[1759581297119,0.002,4485.4,4485.3,22.07975951]
[1759581298344,0.002,4485.4,4485.3,19.85025424]
[1759581298641,0.002,4485.4,4485.3,22.07975951]
[1759581299310,0.4444,4485.4,4485.3,4.71665424]
[1759581299510,0.4444,4485.4,4485.3,3.82477605]
[1759581299934,0.4444,4485.4,4485.3,2.6222]
[1759581300438,0.002,4485.4,4485.3,4.85170527]
[1759581300616,0.002,4485.4,4485.3,6.05428132]
[1759581302220,0.002,4485.4,4485.3,4.85170527]
[1759581302616,0.002,4485.4,4485.3,2.34070527]
[1759581302811,0.002,4485.4,4485.3,4.85170527]
[1759581303348,0.002,4485.4,4485.3,19.35170527]
[1759581303850,0.002,4485.4,4485.3,19.35070527]
[1759581304651,0.4444,4485.4,4485.3,14.6112]
[1759581304816,0.4444,4485.4,4485.3,17.1212]
[1759581305020,0.4444,4485.4,4485.3,18.32407229]
[1759581305217,0.4444,4485.4,4485.3,1.31407229]
[1759581305427,0.4444,4485.4,4485.3,2.6212]
[1759581306126,0.4444,4485.4,4485.3,6.05357756]
[1759581306331,0.002,4485.4,4485.3,4.85070527]
[1759581306656,0.002,4485.4,4485.3,3.823993]
[1759581307354,0.002,4485.4,4485.3,2.6212]
[1759581307562,0.4444,4485.4,4485.3,3.82400711]
[1759581310533,0.002,4485.4,4485.3,6.07580743]
[1759581310733,0.002,4485.4,4485.3,3.82400711]
[1759581312154,0.4444,4485.4,4485.3,3.82400711]
[1759581313256,0.002,4485.4,4485.3,3.82400711]
[1759581313556,0.002,4485.4,4485.3,3.84630216]
[1759581313727,0.4444,4485.4,4485.3,3.82400711]
[1759581314823,0.4444,4485.4,4485.3,6.05351238]
[1759581315026,0.002,4485.4,4485.3,4.85070527]
[1759581315461,0.002,4485.4,4485.3,7.69335156]
[1759581315630,0.002,4485.4,4485.3,7.4194758]
[1759581316056,0.002,4485.9,4485.8,2.22925676]
[1759581316257,0.002,4485.9,4485.8,5.9642233]
[1759581316452,0.002,4485.9,4485.8,4.73925676]
[1759581316656,0.002,4485.9,4485.8,4.85045676]
[1759581316964,0.002,4485.9,4485.8,6.88137622]
[1759581317366,0.002,4485.9,4485.8,5.67870224]
[1759581318763,0.002,4485.9,4485.8,20.17870224]
[1759581318943,0.002,4485.9,4485.8,20.81230224]
[1759581319756,0.002,4485.9,4485.8,22.01497622]
[1759581320370,0.002,4485.9,4485.8,20.81230224]
[1759581320545,0.002,4485.9,4485.8,22.01497622]
[1759581320742,0.002,4485.9,4485.8,20.81230224]
[1759581321138,0.002,4485.9,4485.8,22.01367904]
[1759581322886,0.002,4485.9,4485.8,20.81230224]
[1759581331094,0.002,4485.9,4485.8,22.01367904]
[1759581333360,0.002,4485.9,4485.8,20.81230224]
[1759581339479,0.002,4485.9,4485.8,22.01367904]
[1759581339680,0.002,4485.9,4485.8,20.81230224]
[1759581339904,0.4764,4485.9,4485.8,20.81230224]
[1759581340491,0.4764,4485.9,4485.8,22.01367904]
[1759581343685,0.4764,4485.9,4485.8,7.51367904]
[1759581344107,0.4764,4485.9,4485.8,22.01367904]
[1759581344408,0.4764,4485.9,4485.8,20.81230224]
[1759581345481,0.002,4485.9,4485.8,20.17870224]
[1759581346078,0.002,4485.9,4485.8,20.81230224]
[1759581347088,0.002,4485.9,4485.8,6.31230224]
[1759581347628,0.002,4485.9,4485.8,20.81230224]
[1759581350328,0.4764,4485.9,4485.8,20.81230224]
[1759581350691,0.4764,4485.9,4485.8,6.31230224]
[1759581351090,0.4764,4485.9,4485.8,20.81230224]
[1759581351513,0.002,4485.9,4485.8,20.81230224]
[1759581353113,0.473,4485.9,4485.8,20.81230224]
[1759581353919,0.002,4485.9,4485.8,20.81230224]
[1759581354237,0.002,4485.9,4485.8,6.31230224]
[1759581354729,0.002,4485.9,4485.8,20.81230224]
[1759581357934,0.002,4485.9,4485.8,6.31230224]
[1759581358379,0.002,4485.9,4485.8,20.81230224]
[1759581360834,0.473,4485.9,4485.8,20.81230224]
[1759581361549,0.473,4485.9,4485.8,3.80230224]
[1759581361725,0.473,4485.9,4485.8,3.2538]
[1759581361921,0.473,4485.9,4485.8,0.1112]
[1759581362131,0.473,4485.9,4485.8,6.05218986]
[1759581362944,0.002,4485.9,4485.8,5.12340857]
[1759581363142,0.002,4485.9,4485.8,4.84945676]
[1759581363347,0.002,4485.9,4485.8,7.12707574]
[1759581365224,0.473,4485.9,4485.8,7.12707574]
[1759581365880,0.473,4485.9,4485.8,4.84945676]
[1759581366049,0.473,4485.9,4485.8,19.34945676]
[1759581368523,0.002,4485.9,4485.8,19.34945676]
[1759581369129,0.002,4485.9,4485.8,4.84945676]
[1759581376552,0.473,4485.9,4485.8,4.84945676]
[1759581378911,0.473,4485.9,4485.8,5.32245676]
[1759581379070,0.002,4485.9,4485.8,6.07773544]
[1759581382321,0.002,4485.9,4485.8,20.57773544]
[1759581385399,0.002,4485.9,4485.8,6.07773544]
[1759581385777,0.002,4485.9,4485.8,20.57773544]
[1759581386104,0.4637,4485.9,4485.8,20.57773544]
[1759581386302,0.002,4485.9,4485.8,21.21133544]
[1759581386471,0.002,4485.9,4485.8,21.48528725]
[1759581386916,0.002,4485.9,4485.8,21.21133544]
[1759581388918,0.002,4485.9,4485.8,6.71133544]
[1759581389418,0.002,4485.9,4485.8,21.21133544]
[1759581392597,0.002,4485.9,4485.8,6.71133544]
[1759581393070,0.002,4485.9,4485.8,21.21133544]
[1759581396206,0.002,4485.9,4485.8,6.71133544]
[1759581396623,0.002,4485.9,4485.8,21.21133544]
[1759581403948,0.002,4486.3,4485.8,21.21133544]
[1759581403949,0.002,4486.3,4485.9,0.6336]
[1759581404231,0.002,4486.3,4486.2,2.862658]
[1759581404383,0.002,4486.3,4486.2,5.482858]
[1759581404589,0.002,4486.3,4486.2,20.07203214]
[1759581414307,0.4639,4486.3,4486.2,20.07203214]
[1759581416198,0.002,4486.3,4486.2,20.07203214]
[1759581416397,0.002,4486.3,4486.2,22.34965112]
[1759581417194,0.002,4486.3,4486.2,22.46054655]
[1759581419234,0.002,4486.3,4486.2,27.00623255]
[1759581420237,0.002,4486.3,4486.2,26.35370212]
[1759581420433,0.002,4486.3,4486.2,26.46388202]
[1759581421941,0.002,4486.3,4486.2,26.35370212]
[1759581422703,0.002,4486.3,4486.2,26.62765393]
[1759581423719,0.002,4486.3,4486.2,26.73943158]
[1759581424736,0.002,4486.3,4486.2,26.62765393]
[1759581424943,0.002,4486.3,4486.2,26.35370212]
[1759581427212,0.002,4486.3,4486.2,26.46314315]
[1759581427608,0.002,4486.3,4486.2,26.35370212]
[1759581427817,0.4639,4486.3,4486.2,16.86679312]
[1759581428015,0.4639,4486.3,4486.2,17.008]
[1759581428314,0.4639,4486.3,4486.2,20.43794274]
[1759581429058,0.4639,4486.3,4486.2,17.92994274]
[1759581429251,0.4639,4486.3,4486.2,20.43894274]
[1759581429810,0.4639,4486.3,4486.2,18.20988474]
[1759581430017,0.4639,4486.3,4486.2,20.43894274]
[1759581430554,0.4639,4486.3,4486.2,19.238058]
[1759581433230,0.4639,4486.3,4486.2,4.738058]
[1759581433637,0.4639,4486.3,4486.2,19.238058]
[1759581435778,0.4639,4486.3,4486.2,16.729058]
[1759581435972,0.002,4486.3,4486.2,19.238058]
[1759581436177,0.002,4486.3,4486.2,21.51567698]
[1759581437976,0.002,4486.3,4486.2,21.62687698]
[1759581438970,0.002,4486.3,4486.2,7.12687698]
[1759581439179,0.002,4486.3,4486.2,4.849258]
[1759581439477,0.002,4486.3,4486.2,19.349258]
[1759581440275,0.002,4486.3,4486.2,19.982858]
[1759581440447,0.002,4486.3,4486.2,20.25680981]
[1759581442888,0.4457,4486.3,4486.2,19.982858]
[1759581444108,0.4457,4486.3,4486.2,17.473858]
[1759581444310,0.4457,4486.3,4486.2,19.982858]
[1759581445118,0.4457,4486.3,4486.2,14.6112]
[1759581445298,0.4457,4486.3,4486.2,19.349258]
[1759581445499,0.4457,4486.3,4486.2,17.1202]
[1759581445716,0.4457,4486.3,4486.2,19.349258]
[1759581446309,0.4457,4486.3,4486.2,17.1202]
[1759581447610,0.4457,4486.3,4486.2,19.349258]
[1759581448403,0.4457,4486.3,4486.2,17.1202]
[1759581449382,0.4457,4486.3,4486.2,19.349258]
[1759581450203,0.4457,4486.3,4486.2,2.6202]
[1759581451005,0.4457,4486.3,4486.2,0.1112]
[1759581451210,0.4457,4486.3,4486.2,0.91234503]
[1759581451523,0.4457,4486.3,4486.2,2.508]
[1759581451691,1.17018236,4486.3,4486.2,2.508]
[1759581451894,1.17018236,4486.3,4486.0,0.91334503]
[1759581451895,3.39920504,4486.3,4486.0,0.91334503]
[1759581452127,0.72648236,4486.3,4486.0,0.001]
[1759581452457,2.229058,4486.2,4486.1,2.508]
[1759581452586,2.229058,4486.2,4486.0,0.001]
[1759581452587,4.74030768,4486.1,4486.0,0.001]
[1759581452792,4.74030768,4486.1,4486.0,2.509]
[1759581452991,5.19160768,4486.1,4486.0,2.509]
[1759581455500,3.4606942,4486.1,4486.0,2.509]
[1759581455688,1.57805594,4486.1,4486.0,2.509]
[1759581456629,6.20716362,4486.1,4486.0,2.509]
[1759581459492,3.97805594,4486.1,4486.0,2.509]
[1759581460687,6.20716362,4486.1,4486.0,2.509]
[1759581467838,6.20916362,4486.1,4486.0,2.509]
[1759581485524,6.20916362,4486.1,4486.0,0.001]
[1759581486466,2.22935616,4485.6,4485.5,0.001]
[1759581486662,2.22935616,4485.6,4485.5,2.511]
[1759581486847,5.16915616,4485.6,4485.5,2.511]
[1759581487357,5.83831283,4485.6,4485.5,2.511]
[1759581489047,5.83831283,4485.6,4485.5,0.001]
[1759581489252,6.19204752,4485.6,4485.5,2.511]
[1759581489961,6.19204752,4485.6,4485.5,0.001]
[1759581499385,5.76344752,4485.6,4485.5,0.001]
[1759581499850,6.19204752,4485.6,4485.5,0.001]
[1759581500682,2.23115694,4486.1,4485.5,0.001]
[1759581500683,0.002,4486.1,4485.5,12.0597909]
[1759581500868,0.002,4486.1,4486.0,3.0303024]
[1759581501054,0.002,4486.1,4486.0,17.85487911]
[1759581501286,0.002,4486.1,4486.0,17.83358754]
[1759581501569,0.002,4486.1,4486.0,15.60443017]
[1759581501760,0.002,4486.1,4486.0,16.9827546]
[1759581502376,0.002,4486.1,4486.0,16.18160957]
[1759581502584,0.002,4486.1,4486.0,18.41076694]
[1759581503081,0.002,4486.1,4486.0,19.24015737]
[1759581503243,0.002,4486.1,4486.0,20.0413024]
[1759581503872,0.002,4486.1,4486.0,20.17604251]
[1759581504244,0.002,4486.1,4486.0,21.37770807]
[1759581504485,0.002,4486.1,4486.0,20.17604251]
[1759581504653,0.002,4486.1,4486.0,22.45366149]
[1759581506791,0.002,4486.1,4486.0,22.15137635]
[1759581507378,0.002,4486.1,4486.0,22.94898003]
[1759581510388,0.002,4486.1,4486.0,22.15137635]
[1759581510558,0.002,4486.1,4486.0,22.26257635]
[1759581516785,0.002,4486.1,4486.0,22.26157635]
[1759581520118,0.01,4486.9,4486.0,22.26157635]
[1759581520119,0.01,4486.9,4486.8,2.22875991]
[1759581520316,0.002,4487.4,4486.8,2.22875991]
[1759581520317,0.002,4487.4,4486.9,11.16617124]
[1759581520488,0.002,4487.4,4486.9,9.33664272]
[1759581520811,0.002,4487.4,4486.9,24.13992786]
[1759581521185,0.002,4487.4,4486.9,24.2290869]
[1759581521511,0.002,4487.4,4486.9,24.9650679]
[1759581521718,0.002,4487.4,4486.9,27.24268688]
[1759581522081,0.002,4487.4,4486.9,27.24168688]
[1759581522281,0.002,4487.4,4486.9,26.70135688]
[1759581522503,0.002,4487.4,4486.9,27.39705988]
[1759581522887,0.002,4487.4,4486.9,27.03235988]
[1759581523624,0.002,4487.4,4486.9,26.97989288]
[1759581523848,0.002,4487.4,4486.9,25.61942188]
[1759581524025,0.002,4487.4,4486.9,24.23397588]
[1759581524596,0.002,4487.4,4486.9,25.43938288]
[1759581525424,0.002,4487.4,4486.9,22.03239426]
[1759581525632,0.002,4487.4,4486.9,22.34924926]
[1759581526506,0.002,4487.4,4486.9,22.55252926]
[1759581526719,0.002,4487.4,4486.9,22.28714926]
[1759581527411,0.002,4487.4,4486.9,21.96595926]
[1759581527627,0.002,4487.4,4486.9,22.40714926]
[1759581528539,0.002,4487.4,4486.9,19.72908826]
[1759581528747,0.002,4487.4,4486.9,22.34494126]
[1759581529446,0.002,4487.4,4486.9,23.54660682]
[1759581530146,0.002,4487.4,4486.9,23.65780682]
[1759581530314,0.002,4487.4,4486.9,22.45614126]
[1759581530617,0.002,4487.4,4486.9,25.63850126]
[1759581531235,0.002,4487.4,4486.9,24.34365026]
[1759581531725,0.002,4487.4,4486.9,23.69465026]
[1759581532851,0.002,4487.4,4486.9,25.66988426]
[1759581533154,0.002,4487.4,4486.9,24.71588426]
[1759581533842,0.002,4487.4,4486.9,24.71792226]
[1759581534148,0.002,4487.4,4486.9,23.71692226]
[1759581534728,0.002,4487.4,4486.9,22.93092226]
[1759581534949,0.4676,4487.4,4486.9,22.93092226]
[1759581535878,0.4676,4487.0,4486.9,20.11957802]
[1759581536035,0.4676,4487.0,4486.9,24.51020424]
[1759581536234,0.4676,4487.0,4486.9,23.74713424]
[1759581536760,0.4676,4487.0,4486.9,19.98151024]
[1759581537944,0.002,4487.0,4486.9,19.98151024]
[1759581538143,0.002,4487.0,4486.9,32.30093715]
[1759581538461,0.002,4487.0,4486.9,27.36265101]
[1759581539034,0.002,4487.0,4486.9,28.09433801]
[1759581539936,0.002,4487.0,4486.9,27.28624101]
[1759581540130,0.002,4487.0,4486.9,20.94927701]
[1759581540335,0.4676,4487.0,4486.9,21.22856677]
[1759581540547,0.4676,4487.0,4486.9,22.25912922]
[1759581542130,0.002,4487.0,4486.9,20.03041898]
[1759581542331,0.4676,4487.0,4486.9,22.25912922]
[1759581543334,0.4676,4487.0,4486.8,1.19914779]
[1759581543335,0.4676,4487.0,4486.8,0.001]
[1759581543673,2.69626057,4487.0,4486.9,2.508]
[1759581545348,0.4676,4487.0,4486.9,2.508]
[1759581545942,2.69626057,4487.0,4486.8,0.001]
[1759581546146,3.18894563,4487.0,4486.9,2.508]
[1759581546365,0.96028506,4487.0,4486.9,2.508]
[1759581546565,0.4676,4487.0,4486.9,2.508]
[1759581548956,0.4676,4487.0,4486.8,0.001]
[1759581549167,0.4676,4487.0,4486.9,2.508]
[1759581555515,0.002,4487.0,4486.9,2.508]
[1759581571707,0.002,4487.0,4486.9,2.6192]
[1759581571906,0.002,4487.0,4486.9,2.6414871]
[1759581573050,0.002,4487.0,4486.9,3.440661]
[1759581573377,0.002,4487.0,4486.9,2.6414871]
[1759581574269,0.002,4487.0,4486.9,3.440661]
[1759581574944,0.002,4487.0,4486.9,5.66937124]
[1759581575179,0.002,4487.0,4486.9,5.64708414]